bitfinex-derivatives/quotes_ETHF0:USTF0_20240925
["timestamp","ask_amount","ask_price","bid_price","bid_amount"]
[1727248769812,8.23304994,2616.0,2615.7,0.38227]
[1727248770114,7.85079994,2616.0,2615.8,0.38226]
[1727248770510,7.85079994,2616.0,2615.9,0.38225]
[1727248770816,4.64299994,2616.0,2615.9,0.38225]
[1727248775811,8.46539994,2616.0,2615.9,0.38225]
[1727248776012,8.46539994,2616.0,2615.7,0.76288]
[1727248776322,5.02524994,2616.0,2615.8,8.12120212]
[1727248777121,5.02524994,2616.0,2615.8,8.50347212]
[1727248777832,5.02524994,2616.0,2615.8,8.12120212]
[1727248778016,0.38225,2615.9,2615.8,8.12120212]
[1727248778629,2.98,2615.9,2615.4,0.8005]
[1727248778816,2.98,2615.9,2615.4,1.56521]
[1727248778817,0.3823,2615.6,2615.4,1.56521]
[1727248779117,3.2078,2615.5,2615.4,1.56522]
[1727248779308,3.7456,2615.7,2615.4,0.7824]
[1727248779511,3.7456,2615.7,2615.4,1.16471]
[1727248779722,0.7656,2615.7,2615.5,0.38231]
[1727248780318,3.59007,2615.8,2615.6,0.3823]
[1727248780518,0.38229,2615.7,2615.5,0.38231]
[1727248780920,3.59008,2615.8,2615.4,0.7824]
[1727248781229,3.59008,2615.8,2615.5,0.38231]
[1727248781615,0.38229,2615.7,2615.5,0.38231]
[1727248782015,3.59008,2615.8,2615.5,0.38231]
[1727248782414,3.2078,2615.8,2615.4,0.7824]
[1727248782626,3.2078,2615.8,2615.7,0.38228]
[1727248783011,3.2078,2615.8,2615.6,0.38229]
[1727248783216,3.2078,2615.8,2615.7,0.38228]
[1727248784530,3.2078,2615.8,2615.4,0.7824]
[1727248784723,3.2078,2615.8,2615.6,0.38229]
[1727248785421,3.59007,2615.8,2615.6,0.38229]
[1727248785827,3.2078,2615.8,2615.6,0.38229]
[1727248786526,3.59008,2615.8,2615.4,0.7824]
[1727248786724,4.20607666,2615.8,2615.4,0.7824]
[1727248786925,0.38229,2615.7,2615.4,0.7824]
[1727248787124,0.38229,2615.7,2615.4,1.16473]
[1727248787530,0.99827666,2615.7,2615.5,0.38231]
[1727248788035,5.09263677,2615.8,2615.5,0.3823]
[1727248788036,4.20607666,2615.8,2615.5,0.3823]
[1727248788328,0.99827666,2615.7,2615.5,0.38231]
[1727248788529,2.98,2615.6,2615.0,1.99362513]
[1727248788731,1.00136428,2615.2,2614.8,3.347]
[1727248788932,1.50204642,2615.3,2615.1,4.73748909]
[1727248788933,1.00136428,2615.3,2615.1,4.73748909]
[1727248789123,1.00136428,2615.4,2615.2,0.761]
[1727248789324,1.00136428,2615.5,2615.3,0.367]
[1727248789630,1.00136428,2615.7,2615.4,0.97997335]
[1727248789932,1.00136428,2615.7,2615.4,0.38232]
[1727248790624,1.00136428,2615.7,2615.3,0.74933]
[1727248790935,1.00136428,2615.7,2615.4,5.09097469]
[1727248791233,1.50204642,2615.8,2615.4,5.09097469]
[1727248791234,1.00136428,2615.8,2615.5,0.97995459]
[1727248791423,1.00136428,2615.8,2615.6,0.3823]
[1727248791625,1.00136428,2615.8,2615.7,0.388]
[1727248792427,1.00136428,2615.8,2615.7,1.16448]
[1727248793426,4.20916428,2615.9,2615.7,1.16448]
[1727248793642,4.20916428,2615.9,2615.8,0.3798]
[1727248794026,1.00136428,2615.9,2615.8,0.3798]
[1727248794426,1.00136428,2615.9,2615.8,0.76207]
[1727248794635,5.64436422,2616.0,2615.8,0.76207]
[1727248795136,5.64436422,2616.0,2615.8,0.3798]
[1727248795538,5.64436422,2616.0,2615.8,0.76207]
[1727248795836,5.64436422,2616.0,2615.9,8.84911134]
[1727248795837,4.64299994,2616.0,2615.9,8.84911134]
[1727248796244,4.64299994,2616.0,2615.9,14.84911134]
[1727248796549,7.62299994,2616.0,2615.9,4.64446134]
[1727248796837,7.62299994,2616.0,2615.3,0.7605]
[1727248796838,0.38226,2615.9,2615.3,0.7605]
[1727248797041,1.00096499,2615.7,2615.4,0.38232]
[1727248797436,1.00096499,2615.7,2615.5,0.38231]
[1727248797642,1.00096499,2615.7,2615.4,0.38232]
[1727248798039,1.00096499,2615.7,2615.3,5.11262445]
[1727248798240,1.00096499,2615.7,2615.4,0.38233]
[1727248798749,1.00096499,2615.7,2615.3,5.49495445]
[1727248799445,3.98096499,2615.7,2615.3,1.14283]
[1727248799750,3.98096499,2615.7,2615.3,0.7605]
[1727248799751,1.00096499,2615.7,2615.3,0.7605]
[1727248800345,1.00096499,2615.7,2615.4,0.38232]
[1727248800540,1.00096499,2615.7,2615.3,0.7605]
[1727248800751,4.20876499,2615.8,2615.5,4.07477691]
[1727248800947,4.20876499,2615.8,2615.6,0.38229]
[1727248801257,3.2078,2615.8,2615.6,0.38229]
[1727248801449,1.00096499,2615.9,2615.6,3.8232]
[1727248801749,5.64396493,2616.0,2615.7,4.4216323]
[1727248801954,5.64396493,2616.0,2615.8,1.15397]
[1727248802355,5.64396493,2616.0,2615.9,0.38225]
[1727248802558,5.64396493,2616.0,2615.8,1.15396]
[1727248802855,5.64396493,2616.0,2615.9,0.38225]
[1727248803163,4.64299994,2616.0,2615.9,0.38225]
[1727248804157,4.64299994,2616.0,2615.8,1.15396]
[1727248805855,4.64299994,2616.0,2615.8,0.7717]
[1727248806056,6.02621493,2616.0,2615.7,0.3814]
[1727248806253,0.38226,2615.9,2615.7,0.3814]
[1727248806463,6.1878,2615.8,2615.4,1.49995232]
[1727248806656,3.2078,2615.5,2615.1,1.49995232]
[1727248806955,0.38239,2615.0,2614.8,1.97602262]
[1727248807151,0.38238,2615.1,2614.9,0.59779244]
[1727248807355,0.38238,2615.1,2614.8,0.8584803]
[1727248807953,0.38239,2615.0,2614.9,0.59781007]
[1727248808252,7.18876499,2615.2,2614.8,0.4760703]
[1727248808253,0.3824,2614.9,2614.8,0.4760703]
[1727248808461,6.5702,2614.9,2614.8,0.4760703]
[1727248809150,6.1878,2614.9,2614.5,1.87155232]
[1727248809348,3.3607,2614.8,2614.5,1.49995232]
[1727248809550,1.00096499,2614.7,2614.4,0.3957]
[1727248809763,1.38340499,2614.7,2614.4,0.77816]
[1727248809957,0.38245,2614.6,2614.4,0.3957]
[1727248810150,1.00096499,2614.7,2614.4,0.3957]
[1727248810348,1.00096499,2614.7,2614.1,0.3716]
[1727248810349,2.98,2614.5,2614.1,0.3716]
[1727248810555,0.38248,2614.4,2614.1,0.75411]
[1727248810757,3.36246,2614.5,2614.2,0.3825]
[1727248810955,2.98,2614.5,2614.3,0.38249]
[1727248811159,3.59025,2614.6,2614.3,0.38249]
[1727248812361,0.76311,2614.8,2614.5,0.38245]
[1727248812660,0.3807,2614.8,2614.5,0.38245]
[1727248812861,0.3807,2614.8,2614.6,0.3789]
[1727248813160,0.3807,2614.8,2614.6,0.76134]
[1727248813563,3.2078,2614.9,2614.6,0.3789]
[1727248813958,3.2078,2614.9,2614.6,0.76134]
[1727248814361,3.5902,2614.9,2614.6,0.76134]
[1727248814570,3.5902,2614.9,2614.6,0.3789]
[1727248814571,3.2078,2614.9,2614.6,0.3789]
[1727248814771,3.2078,2614.9,2614.3,0.38248]
[1727248815064,2.98,2614.4,2614.1,8.2922246]
[1727248815273,3.36248,2614.4,2614.1,8.2922246]
[1727248815571,2.98,2614.4,2614.2,0.3825]
[1727248815759,2.98,2614.4,2614.1,8.6747346]
[1727248816267,2.98,2614.4,2614.2,0.3825]
[1727248817151,2.98,2614.4,2614.1,8.2922246]
[1727248817357,3.36248,2614.4,2614.1,0.3789]
[1727248817855,3.36248,2614.4,2614.1,0.76141]
[1727248818058,0.388,2614.5,2613.4,4.70775232]
[1727248818059,2.98,2614.2,2613.4,4.70775232]
[1727248818360,3.2078,2614.3,2613.4,4.70775232]
[1727248818361,3.2078,2614.3,2613.9,4.01704997]
[1727248818566,3.2078,2614.3,2614.1,0.38252]
[1727248818962,3.5903,2614.3,2613.7,0.7919]
[1727248819162,3.5903,2614.3,2614.0,0.38252]
[1727248819360,3.2078,2614.3,2614.1,0.38251]
[1727248819667,3.2078,2614.3,2614.2,0.7488]
[1727248821056,3.2078,2614.3,2614.2,0.3663]
[1727248821261,3.2078,2614.3,2614.2,0.7488]
[1727248821764,0.388,2614.5,2614.2,0.7488]
[1727248821959,0.77046,2614.5,2614.3,0.75788]
[1727248822165,3.2078,2614.6,2614.4,0.38247]
[1727248822371,3.59024,2614.6,2614.4,0.77317]
[1727248822774,3.2078,2614.6,2614.4,0.77317]
[1727248822963,3.59025,2614.6,2614.4,0.3907]
[1727248823162,5.98025,2614.6,2614.4,0.77317]
[1727248823361,5.5978,2614.6,2614.5,0.38246]
[1727248823664,5.5978,2614.6,2614.4,0.3907]
[1727248823665,5.5978,2614.6,2614.4,0.77316]
[1727248823868,3.2078,2614.6,2614.5,0.38246]
[1727248824068,6.588,2615.3,2615.0,0.38238]
[1727248824267,3.2078,2615.2,2614.5,12.71309372]
[1727248824467,2.39,2615.3,2614.5,15.10309372]
[1727248824667,6.34622,2615.5,2615.2,0.38236]
[1727248824868,5.98012,2615.5,2615.3,0.3781]
[1727248825371,5.5978,2615.5,2615.3,0.3781]
[1727248825569,5.98011,2615.5,2615.3,0.3781]
[1727248825764,5.5978,2615.5,2615.3,0.76043]
[1727248825962,5.5978,2615.5,2615.4,0.38233]
[1727248826166,3.2078,2615.5,2615.4,0.38233]
[1727248826371,3.2078,2615.8,2615.3,0.3781]
[1727248826579,4.64299994,2616.0,2615.7,0.38228]
[1727248826779,4.64299994,2616.0,2615.4,14.71186642]
[1727248827069,2.39,2615.9,2615.5,0.7639]
[1727248827269,2.39,2615.9,2615.6,0.38229]
[1727248827573,2.39,2615.9,2615.6,4.65737616]
[1727248827973,2.39,2615.9,2615.7,0.38228]
[1727248828576,2.39,2615.9,2615.6,4.27508616]
[1727248828768,2.39,2615.7,2615.5,0.3816]
[1727248829571,2.39,2615.7,2615.3,0.3781]
[1727248829868,2.77229,2615.7,2615.4,8.0234125]
[1727248830975,2.39,2615.7,2615.4,8.0234125]
[1727248831164,2.77229,2615.7,2615.4,8.0234125]
[1727248831361,2.39,2615.7,2615.4,8.4057325]
[1727248831674,3.2078,2615.8,2615.7,0.38228]
[1727248831873,3.2078,2615.8,2615.5,4.83384518]
[1727248832071,3.2078,2615.8,2615.7,0.38228]
[1727248832272,3.2078,2615.8,2615.6,0.38229]
[1727248832568,3.2078,2615.8,2615.7,0.78238]
[1727248832770,3.2078,2615.8,2615.7,0.4001]
[1727248832975,3.2078,2615.8,2615.7,0.78238]
[1727248834078,4.64299994,2616.0,2615.7,0.4001]
[1727248834264,4.64299994,2616.0,2615.9,0.38225]
[1727248835165,4.64299994,2616.0,2615.9,8.53680825]
[1727248836304,2.8637,2616.7,2616.4,0.38218]
[1727248836305,0.4737,2616.7,2616.4,0.38218]
[1727248836474,0.4737,2616.7,2615.9,28.85639298]
[1727248836475,0.76684,2616.7,2616.3,0.38219]
[1727248836676,3.2078,2616.5,2615.9,15.68835298]
[1727248836871,2.39,2616.4,2615.9,12.48055298]
[1727248837266,2.77219,2616.4,2616.0,0.38223]
[1727248837875,3.5822,2616.5,2616.2,0.38221]
[1727248838180,3.96437,2616.5,2616.1,0.38222]
[1727248838879,0.3821,2617.0,2616.4,5.5978]
[1727248839084,0.089,2617.5,2616.8,2.39]
[1727248839274,0.089,2617.5,2616.5,4.7398]
[1727248839275,2.39,2617.5,2617.1,0.38207]
[1727248839476,0.7623,2617.7,2616.9,13.255905]
[1727248839687,3.9701,2617.7,2617.0,2.39]
[1727248839883,3.9701,2617.7,2616.9,8.17793697]
[1727248840085,3.2078,2617.4,2616.9,0.381]
[1727248840273,3.2078,2617.4,2617.1,4.25543158]
[1727248840481,3.2078,2617.4,2617.0,0.38209]
[1727248840674,3.2078,2617.4,2616.9,0.381]
[1727248840975,3.2078,2617.4,2617.1,12.18987293]
[1727248841177,3.9701,2617.7,2617.3,0.38204]
[1727248841378,4.35209,2617.7,2617.2,4.05983359]
[1727248841574,3.9701,2617.7,2616.8,6.1478]
[1727248841774,0.3842,2617.7,2617.6,0.38201]
[1727248842187,3.2078,2618.0,2617.1,11.12875176]
[1727248842403,0.3837,2618.4,2618.1,0.38193]
[1727248842404,0.089,2618.2,2618.1,0.38193]
[1727248842582,0.78339,2618.4,2617.8,1.9331]
[1727248842885,0.38194,2618.1,2617.8,4.06507494]
[1727248843123,3.58973,2618.1,2617.8,4.06507494]
[1727248843279,3.58973,2618.1,2617.6,0.382]
[1727248843592,3.58973,2618.1,2617.7,4.44706494]
[1727248844092,3.58973,2618.1,2617.7,0.38199]
[1727248844284,3.2078,2618.1,2617.7,0.38199]
[1727248844478,3.58973,2618.1,2617.7,0.38199]
[1727248844793,3.58973,2618.1,2617.8,4.10553116]
[1727248844794,3.2078,2618.1,2617.8,4.10553116]
[1727248844984,0.4015,2618.4,2617.8,4.10553116]
[1727248845486,3.58972,2618.2,2617.8,4.48751116]
[1727248846096,3.2078,2618.2,2617.8,4.10553116]
[1727248846490,0.4015,2618.4,2618.1,0.38193]
[1727248847085,0.4015,2618.4,2618.0,0.38194]
[1727248847387,0.78339,2618.4,2618.0,0.38194]
[1727248847882,0.7834,2618.4,2618.0,0.38194]
[1727248848081,3.2078,2618.3,2617.8,4.13639571]
[1727248848285,0.38193,2618.2,2617.8,4.51836571]
[1727248848486,3.2078,2618.3,2617.8,0.38197]
[1727248848692,0.38193,2618.2,2617.9,4.24367397]
[1727248849084,0.38194,2618.1,2617.9,4.24367397]
[1727248849303,3.2078,2618.3,2617.9,4.24367397]
[1727248849485,0.38194,2618.1,2617.9,4.24367397]
[1727248849691,0.3804,2618.2,2617.9,4.24367397]
[1727248849881,0.38194,2618.1,2617.9,4.24367397]
[1727248850290,0.38195,2618.0,2617.7,0.38198]
[1727248850492,0.38197,2617.9,2617.3,0.7592]
[1727248850685,0.38197,2617.9,2617.8,4.36114337]
[1727248850991,0.38197,2617.9,2617.6,0.382]
[1727248851179,3.2078,2618.0,2617.5,0.38201]
[1727248851385,3.2078,2618.0,2617.7,4.30369688]
[1727248851386,0.3689,2617.8,2617.7,4.30369688]
[1727248851582,0.3689,2617.8,2617.6,0.382]
[1727248851777,0.3689,2617.8,2617.5,0.38201]
[1727248852181,0.3689,2617.8,2617.6,7.96336725]
[1727248852399,0.75088,2617.8,2617.6,7.96336725]
[1727248853108,0.3689,2617.8,2617.6,8.34536725]
[1727248853593,0.75089,2617.8,2617.6,7.96336725]
[1727248854493,0.38201,2617.6,2617.3,0.38204]
[1727248854792,3.2078,2617.7,2617.4,4.31708157]
[1727248854793,0.382,2617.7,2617.4,4.31708157]
[1727248854986,0.382,2617.7,2617.4,4.69911157]
[1727248855186,0.382,2617.7,2617.4,0.38203]
[1727248855989,0.38202,2617.6,2617.3,0.38204]
[1727248856294,0.38202,2617.5,2617.3,11.90481275]
[1727248856590,0.3689,2617.8,2617.3,11.90481275]
[1727248856793,0.38203,2617.5,2617.3,11.90481275]
[1727248857292,0.38201,2617.6,2617.3,12.28685275]
[1727248857487,0.38203,2617.5,2617.3,11.90481275]
[1727248857690,3.2078,2617.6,2617.3,11.90481275]
[1727248857990,0.38202,2617.5,2617.3,4.04876036]
[1727248858191,3.2078,2617.6,2617.3,4.04876036]
[1727248858385,3.2078,2617.6,2617.5,0.38202]
[1727248858698,3.2078,2617.6,2617.5,4.45364974]
[1727248858888,0.78064,2618.1,2617.5,7.89162974]
[1727248859088,0.78064,2618.1,2617.7,0.38198]
[1727248859288,0.3987,2618.1,2617.5,7.01162974]
[1727248859494,0.78063,2618.1,2617.8,12.32745955]
[1727248859694,0.78063,2618.1,2617.8,0.38197]
[1727248860095,0.78063,2618.1,2617.9,4.05893789]
[1727248860489,0.38195,2618.0,2617.9,4.05893789]
[1727248860696,0.3987,2618.1,2617.9,4.05893789]
[1727248861084,0.78064,2618.1,2617.9,4.05893789]
[1727248861994,0.3987,2618.1,2617.9,4.05893789]
[1727248862192,0.089,2618.7,2618.0,11.95142847]
[1727248862392,0.38186,2618.6,2618.4,2.38]
[1727248862609,3.5876,2618.8,2618.4,2.38]
[1727248862902,0.38185,2618.7,2618.5,4.26085512]
[1727248863201,3.96944,2618.8,2618.5,4.64272512]
[1727248863402,0.38185,2618.7,2618.5,4.26085512]
[1727248863592,0.38185,2618.7,2618.5,4.64272512]
[1727248863797,3.96944,2618.8,2618.5,4.64272512]
[1727248864397,0.3798,2618.8,2618.6,2.38]
[1727248864698,3.2078,2619.1,2618.6,6.1984]
[1727248864997,3.2078,2619.1,2618.7,15.65062645]
[1727248865196,0.38183,2618.8,2618.7,12.51068645]
[1727248865407,0.38183,2618.8,2618.6,8.06057184]
[1727248865408,0.38184,2618.7,2618.6,8.06057184]
[1727248865696,6.9742,2618.7,2618.0,12.46396229]
[1727248865899,0.38194,2618.1,2618.0,12.46396229]
[1727248866102,0.38195,2618.0,2617.8,12.51705932]
[1727248866402,3.2078,2618.2,2617.7,2.7581]
[1727248866603,0.38196,2618.0,2617.7,2.7581]
[1727248866793,0.38196,2618.0,2617.8,7.80465005]
[1727248866998,0.38196,2618.0,2617.8,8.18662005]
[1727248867192,0.78314,2618.1,2617.9,0.38196]
[1727248867394,0.78314,2618.1,2617.8,8.18662005]
[1727248867594,0.4012,2618.1,2617.8,7.80465005]
[1727248867793,3.58972,2618.2,2617.8,7.80465005]
[1727248867794,3.2078,2618.2,2617.9,10.4081421]
[1727248868102,0.38189,2618.4,2618.0,8.36174]
[1727248868303,0.74798,2618.5,2618.1,0.38192]
[1727248868614,0.3819,2618.4,2618.1,4.4958658]
[1727248868798,0.74798,2618.5,2618.2,0.38192]
[1727248869105,0.3661,2618.5,2618.1,6.4939458]
[1727248869399,0.3661,2618.5,2618.4,0.38189]
[1727248869803,0.3661,2618.5,2618.2,12.20826629]
[1727248869804,0.3661,2618.5,2618.3,0.38189]
[1727248870089,0.3661,2618.5,2617.9,2.748]
[1727248870294,0.74798,2618.5,2618.2,0.38191]
[1727248870499,0.74798,2618.5,2618.2,8.17707924]
[1727248870805,0.74798,2618.5,2618.2,0.38191]
[1727248871591,0.38189,2618.4,2618.2,0.38191]
[1727248873794,3.5897,2618.4,2618.2,0.38192]
[1727248874000,3.6077,2618.4,2618.2,0.3819]
[1727248874201,3.6077,2618.4,2617.9,2.748]
[1727248874398,3.6077,2618.4,2618.3,0.3819]
[1727248874706,3.2078,2618.4,2618.3,2.7619]
[1727248875408,0.38185,2618.7,2618.4,0.38188]
[1727248875701,0.3999,2618.8,2618.6,0.38185]
[1727248876701,3.58961,2619.0,2618.7,0.38184]
[1727248877104,3.2078,2619.0,2618.8,2.38]
[1727248877304,3.2078,2619.0,2618.9,0.38182]
[1727248878615,3.2078,2619.0,2618.9,8.56478567]
[1727248879314,3.5896,2619.0,2618.9,4.36456567]
[1727248879612,0.38186,2618.6,2618.4,0.3839]
[1727248880312,6.3836,2619.0,2618.4,0.3839]
[1727248880500,0.38185,2618.7,2618.4,0.3839]
[1727248880700,0.38183,2618.9,2618.4,0.3839]
[1727248880904,4.0036,2619.0,2618.5,4.26101972]
[1727248881107,3.98271,2619.0,2618.7,0.38184]
[1727248881399,0.38182,2618.9,2618.6,0.38185]
[1727248881602,0.38183,2618.8,2618.5,4.63581972]
[1727248881813,0.38183,2618.8,2618.6,0.38186]
[1727248882114,0.38182,2618.9,2618.6,0.38186]
[1727248883606,0.38182,2618.9,2618.6,0.38185]
[1727248885010,3.6009,2619.0,2618.6,2.38]
[1727248885211,3.6009,2619.0,2618.8,2.38]
[1727248885513,3.6009,2619.0,2618.8,2.76182]
[1727248885704,3.6009,2619.0,2618.9,0.38182]
[1727248887010,3.6009,2619.0,2618.5,0.3748]
[1727248887215,0.38184,2618.8,2618.5,0.75666]
[1727248887403,0.38184,2618.8,2618.6,12.62179041]
[1727248887610,0.38184,2618.8,2618.6,12.02483986]
[1727248888006,0.38182,2618.9,2618.6,12.40669986]
[1727248888321,0.38183,2618.8,2618.6,12.40669986]
[1727248888521,3.6009,2619.0,2618.6,12.02483986]
[1727248888714,0.38184,2618.8,2618.6,12.40669986]
[1727248888912,3.98271,2619.0,2618.7,0.38184]
[1727248889115,3.6009,2619.0,2618.6,12.02483986]
[1727248889314,3.6009,2619.0,2618.9,0.38182]
[1727248889824,3.6009,2619.0,2618.8,2.76182]
[1727248890515,3.6009,2619.0,2618.8,0.38182]
[1727248891423,3.9827,2619.0,2618.8,0.38182]
[1727248891618,3.6009,2619.0,2618.6,0.38185]
[1727248891818,0.38184,2618.8,2618.5,0.75666]
[1727248892122,0.38184,2618.7,2618.6,12.10973227]
[1727248892325,0.38184,2618.7,2618.6,4.0681551]
[1727248892518,0.38184,2618.7,2618.5,4.00123713]
[1727248892718,0.38184,2618.7,2618.4,0.76578]
[1727248892921,0.38184,2618.7,2618.5,0.38187]
[1727248893123,0.38184,2618.7,2618.5,4.38310713]
[1727248893826,0.38185,2618.7,2618.5,4.38310713]
[1727248894250,0.38185,2618.7,2618.5,4.00123713]
[1727248894525,0.38185,2618.7,2618.5,4.38310713]
[1727248894930,0.38186,2618.6,2618.5,4.00123713]
[1727248895128,0.77716,2618.6,2618.5,4.00123713]
[1727248896228,0.3953,2618.6,2618.5,4.38310713]
[1727248897236,0.77716,2618.6,2618.5,4.00123713]
[1727248897432,0.3953,2618.6,2618.5,4.00123713]
[1727248897936,0.3953,2618.6,2618.5,4.38310713]
[1727248898123,0.3953,2618.6,2618.4,0.3839]
[1727248898326,0.3953,2618.6,2618.5,0.38187]
[1727248899633,0.3953,2618.6,2618.4,0.3839]
[1727248900227,0.3926,2618.8,2618.4,0.3839]
[1727248900435,3.9799,2619.0,2618.5,6.44651528]
[1727248900628,4.60876499,2619.4,2618.7,3.33459]
[1727248900828,4.60876499,2619.4,2619.3,0.38176]
[1727248900829,3.2078,2619.4,2619.3,0.38176]
[1727248901055,0.76524,2619.5,2619.2,0.38176]
[1727248901326,0.76524,2619.5,2619.3,0.38176]
[1727248901526,0.3835,2619.5,2619.1,4.38526124]
[1727248902036,0.3835,2619.5,2619.3,0.38174]
[1727248902227,0.76523,2619.5,2619.2,0.38176]
[1727248903137,0.3835,2619.5,2619.3,0.38176]
[1727248903537,0.76523,2619.5,2619.2,0.38176]
[1727248903937,0.38174,2619.4,2619.1,4.76703124]
[1727248904242,0.3835,2619.5,2619.1,4.38526124]
[1727248904456,0.38175,2619.4,2619.1,0.74748]
[1727248904633,0.76524,2619.5,2619.2,0.38176]
[1727248904827,0.3835,2619.5,2619.2,0.38176]
[1727248905032,0.3835,2619.5,2619.1,0.3657]
[1727248905242,0.3835,2619.5,2619.3,0.38175]
[1727248905934,0.3835,2619.5,2619.1,0.3657]
[1727248906333,0.3835,2619.5,2619.3,0.38176]
[1727248906845,4.109,2619.9,2619.4,7.88503325]
[1727248907038,4.109,2619.9,2619.7,0.3817]
[1727248907039,4.4807,2619.9,2619.7,0.3817]
[1727248907236,4.4807,2619.9,2619.6,0.3817]
[1727248907639,4.4807,2619.9,2619.6,8.46476782]
[1727248908133,0.3717,2619.9,2619.7,0.3817]
[1727248908336,0.3717,2619.9,2619.6,8.08306782]
[1727248908540,0.3717,2619.9,2619.8,0.38168]
[1727248908744,3.6124,2620.0,2619.8,0.38168]
[1727248909442,7.0246,2620.0,2619.6,8.08306782]
[1727248909641,7.0246,2620.0,2619.4,0.3873]
[1727248909642,3.2078,2619.7,2619.4,0.3873]
[1727248909939,0.3717,2619.6,2619.2,0.3968]
[1727248910142,0.3717,2619.6,2618.9,0.4046]
[1727248910143,0.38178,2619.2,2618.9,0.4046]
[1727248910338,0.3734,2619.1,2618.9,0.78641]
[1727248910638,0.3734,2619.1,2619.0,8.01709162]
[1727248911540,0.3734,2619.1,2619.0,8.39889162]
[1727248911841,0.75296,2619.3,2619.1,0.38178]
[1727248911842,0.3712,2619.3,2619.1,0.38178]
[1727248912043,0.3712,2619.3,2619.1,0.38179]
[1727248912236,0.75296,2619.3,2619.0,10.77888162]
[1727248912837,0.75296,2619.3,2619.1,0.38179]
[1727248913041,0.3712,2619.3,2619.1,0.38179]
[1727248913242,0.75296,2619.3,2619.0,10.39709162]
[1727248913436,0.3712,2619.3,2619.1,0.38178]
[1727248914442,0.3734,2619.5,2619.3,0.38175]
[1727248914647,0.75513,2619.5,2619.2,2.76177]
[1727248914847,0.3734,2619.5,2619.2,2.76177]
[1727248915042,0.38172,2619.6,2619.2,2.76177]
[1727248915236,4.97086499,2619.8,2619.3,0.3675]
[1727248915547,0.38171,2619.7,2619.3,0.74925]
[1727248915941,0.38171,2619.6,2619.3,0.74925]
[1727248916149,4.97086499,2619.8,2619.5,0.38172]
[1727248916150,5.35255499,2619.8,2619.5,0.38172]
[1727248916335,5.35255499,2619.8,2619.5,2.38]
[1727248916336,4.97086499,2619.8,2619.5,2.38]
[1727248916646,1.00096499,2620.1,2619.7,2.38]
[1727248916848,0.401,2620.2,2620.0,2.38]
[1727248917337,0.78264,2620.2,2620.0,2.38]
[1727248918349,0.78264,2620.2,2619.9,0.38167]
[1727248918749,0.401,2620.2,2620.0,0.38165]
[1727248919149,0.401,2620.2,2619.9,0.38166]
[1727248919942,0.401,2620.2,2619.7,12.03701954]
[1727248919943,3.6088,2620.2,2619.7,12.03701954]
[1727248920145,0.38164,2620.1,2619.8,0.38168]
[1727248920346,3.6088,2620.2,2619.7,8.27470208]
[1727248920663,0.38167,2619.9,2619.7,7.89301208]
[1727248920859,0.38164,2620.1,2619.7,8.27470208]
[1727248921156,0.38166,2620.0,2619.7,8.27470208]
[1727248921642,0.38168,2619.9,2619.7,7.89301208]
[1727248921954,0.38167,2619.9,2619.6,0.38171]
[1727248922138,5.56386499,2620.2,2619.4,0.3852]
[1727248922344,0.38168,2619.9,2619.6,0.38171]
[1727248923057,5.56386499,2620.2,2619.8,0.38168]
[1727248923058,0.38166,2620.0,2619.8,0.38168]
[1727248923276,3.6088,2620.2,2620.0,0.38166]
[1727248923443,3.6088,2620.2,2619.7,4.07321946]
[1727248923652,0.38167,2619.9,2619.6,3.31171]
[1727248924051,0.38167,2619.9,2619.7,4.07321946]
[1727248924253,0.95411,2620.1,2619.4,0.3852]
[1727248924539,0.38169,2619.8,2619.5,0.38172]
[1727248925153,0.4034,2619.7,2619.5,0.38172]
[1727248925353,0.4034,2619.7,2619.6,0.38171]
[1727248925544,3.2078,2619.9,2619.4,0.3852]
[1727248925851,0.3889,2620.1,2619.9,0.38166]
[1727248926053,0.3889,2620.1,2619.6,2.93]
[1727248926253,0.3719,2620.3,2619.6,2.93]
[1727248926446,0.75351,2620.3,2620.0,0.38165]
[1727248927549,0.3719,2620.3,2620.0,0.38165]
[1727248927750,3.5967,2620.4,2619.7,12.48333938]
[1727248928060,3.5967,2620.4,2620.2,0.38162]
[1727248929542,3.5967,2620.4,2620.1,0.38164]
[1727248929750,3.9783,2620.4,2620.1,0.38163]
[1727248929950,3.5967,2620.4,2620.0,0.801]
[1727248930151,3.97831,2620.4,2620.1,0.38164]
[1727248931355,3.9783,2620.4,2620.1,0.38163]
[1727248932755,3.5967,2620.4,2620.2,0.38162]
[1727248933050,3.5967,2620.4,2620.0,0.801]
[1727248933269,3.5967,2620.4,2620.1,0.38163]
[1727248933270,3.97831,2620.4,2620.1,0.38163]
[1727248934755,0.38162,2620.3,2620.0,1.18265]
[1727248935057,3.9783,2620.4,2620.1,0.38163]
[1727248935354,0.38161,2620.3,2620.1,0.38163]
[1727248935546,3.97831,2620.4,2620.1,0.38164]
[1727248936150,3.5967,2620.4,2620.1,0.38164]
[1727248936345,3.9783,2620.4,2620.1,0.38164]
[1727248937359,0.38162,2620.3,2620.1,0.38163]
[1727248937550,3.97831,2620.4,2620.2,0.38162]
[1727248937750,0.38167,2619.9,2619.7,0.38169]
[1727248938054,0.3817,2619.7,2619.6,0.98349909]
[1727248938447,0.3817,2619.7,2619.4,0.38173]
[1727248939046,4.3725,2619.8,2619.4,0.38173]
[1727248939857,0.38171,2619.7,2619.4,0.38173]
[1727248940156,4.75419,2619.8,2619.6,0.38171]
[1727248940459,4.75419,2619.8,2619.6,2.76171]
[1727248940646,4.75419,2619.8,2619.6,2.38]
[1727248940849,1.54639,2619.8,2619.6,2.38]
[1727248941352,0.3817,2619.7,2619.6,2.38]